Cogmind - Beta 15 @@@ ROGUE MODE // 2025.08.31 @ 00:33:35 Player: NQH Result: Destroyed by KD-FSK(R) with Subdweller Laser Performance ------------- Evolutions (0) 0 Regions Visited (2) 400 Robots Destroyed (16) 80 Value Destroyed (322) 322 Prototype IDs (0) 0 Alien Tech Used (0) 0 Bonus (0) 0 TOTAL SCORE: 802 Bonus ------- None Cogmind --------- Core Integrity 0/250 Matter 300/300 Energy 100/100 System Corruption 0% Temperature Cool (6) Movement Core (150) Ox2 Location -10/Subcaves Parts ------- > --- POWER (1) -------- (None) > --- PROPULSION (2) --- (None) > --- UTILITY (2) ------ Small Storage Unit Propulsion Shielding > --- WEAPON (2) ------- Small Laser Light Assault Rifle > --- INVENTORY (8) ---- Light Ion Engine Seismic Detector ECM Suite ECM Suite ECM Suite ECM Suite Tractor Beam Mining Laser Peak State ------------ > --- POWER ------------ Ion Engine > --- PROPULSION ------- Light Treads Light Treads > --- UTILITY ---------- Small Storage Unit ECM Suite > --- WEAPON ----------- Particle Gun Assault Rifle > --- INVENTORY -------- Seismic Detector ECM Suite ECM Suite ECM Suite ECM Suite ECM Suite Tractor Beam Mining Laser [Rating: 8] Favorites ----------- Power Ion Engine Engine Ion Engine Propulsion Light Treads Treads Light Treads Leg Aluminum Leg Wheel Compact Wheel Utility Small Storage Unit Device ECM Suite Storage Small Storage Unit Protection Propulsion Shielding Weapon Assault Rifle Energy Gun Particle Gun Ballistic Gun Assault Rifle Build | -11 -10 -10 ------- Run | Yrd Mat Sub Slots Evolved . | . . . Power . | . . . Propulsion . | . . . Utility . | . . . Weapon . | . . . Parts Attached 19 | 9 10 . Power 2 | 1 1 . Engine 2 | 1 1 . Core . | . . . Reactor . | . . . Propulsion 5 | 3 2 . Treads 2 | 2 . . Leg 1 | 1 . . Wheel 2 | . 2 . Hover . | . . . Flight . | . . . Utility 5 | 2 3 . Device 3 | 1 2 . Storage 1 | 1 . . Processor . | . . . Hackware . | . . . Protection 1 | . 1 . Artifact . | . . . Weapon 7 | 3 4 . Energy Gun 4 | 2 2 . Energy Cannon . | . . . Ballistic Gun 3 | 1 2 . Ballistic Cannon . | . . . Launcher . | . . . Special Weapon . | . . . Impact Weapon . | . . . Slashing Weapon . | . . . Piercing Weapon . | . . . Special Melee Weapon . | . . . Unidentified Prototypes . | . . . Parts Lost 5 | . 2 3 Power 1 | . . 1 Propulsion 2 | . . 2 Utility . | . . . Weapon 2 | . 2 . Highest Loss Streak 3 | . 1 3 To Critical Strikes . | . . . Average Backups 6 | . 7 8 Power . | . . 1 Propulsion . | . . . Utility 5 | . 6 6 Weapon . | . 1 1 Tool/Special . | . . . Unused Backups 11 | . 4 7 Power 1 | . . 1 Propulsion . | . . . Utility 9 | . 4 5 Weapon 1 | . . 1 Tool/Special . | . . . Average Slot Usage (%) 93 | . 93 89 Engine 13 | . 14 11 Treads 15 | . 17 . Wheel 11 | . 10 21 Device 8 | . 9 . Storage 14 | . 14 14 Protection 5 | . 4 14 Energy Gun 5 | . 4 14 Ballistic Gun 17 | . 18 14 Peak Build Rating 8 | 6 8 7 Average Rating 6 | 4 6 6 On Entrance 4 | . 6 7 Naked Turns . | . . . Heaviest Build 17 | 13 17 11 Greatest Support 40 | 40 40 32 Greatest Overweight (x) 5 | . 5 2 Average Overweight (x) . | . . . Largest Inventory Capacity 8 | 8 8 8 Average Capacity 7 | 7 8 8 Most Carried 8 | 3 8 8 Average Carried 6 | . 7 8 Final Capacity 8 | 8 8 8 Final Carried 8 | 3 8 8 Class Distribution -------------------- 100% | Mutant Dominant Class ---------------- Mutant | -10/Materials Mutant | -10/Subcaves Resources | -11 -10 -10 ----------- Run | Yrd Mat Sub Matter Collected 634 | 335 299 . Remotely 41 | 41 . . Salvage Created 594 | 125 469 . Parts 38 | 11 27 . Haulers Intercepted . | . . . Recyclers Shooed 2 | 1 1 . Parts Field Recycled . | . . . Retrieved Matter . | . . . Parts Self-Destructed 4 | . . 4 Prevented . | . . . Kills | -11 -10 -10 ------- Run | Yrd Mat Sub Combat Hostiles Destroyed 10 | . 10 . Guns 10 | . 10 . Classes Destroyed 5 | 3 2 . Worker 2 | 1 1 . Tunneler 2 | 2 . . Recycler 2 | 1 1 . Swarmer 3 | . 3 . Grunt 7 | . 7 . Best Kill Streak 4 | 4 2 . Combat Bots Only 2 | . 2 . Max Kills in Single Turn 1 | 1 1 . Gunslinging . | . . . Exploded . | . . . Melee . | . . . Uniques/NPCs Destroyed . | . . . Combat | -11 -10 -10 -------- Run | Yrd Mat Sub Hostile Shots Fired 93 | . 88 5 Missed 27 | . 27 . Hits 66 | . 61 5 Projectile 66 | . 61 5 Critical Strikes 2 | . 2 . Damage Taken 796 | . 684 112 Core 268 | . 204 64 Absorbed by Shields . | . . . Redirected to Shielding 26 | . 13 13 Core Remaining (%) 100 | 100 . . Volleys Fired 82 | 15 67 . Largest 2 | 1 2 . Hottest 85 | 20 85 . Shots Fired 116 | 15 101 . Gun 116 | 15 101 . Cannon . | . . . Launcher . | . . . Special . | . . . Kinetic 100 | 15 85 . Thermal 16 | . 16 . Explosive . | . . . Electromagnetic . | . . . Robot Hit Streak 8 | 7 8 . Robot Miss Streak 8 | 4 8 . Penetration Max . | . . . Secondary Targets 1 | . 1 . Max Gunslinging Chain 1 | . 1 . Shots Hit Robots 66 | 9 57 . Core Hits 27 | 5 22 . Critical Kills . | . . . Critical Parts Destroyed . | . . . Critical Strikes 1 | . 1 . Burn 1 | . 1 . Melee Attacks . | . . . Impact . | . . . Slashing . | . . . Piercing . | . . . Sneak Attacks . | . . . Combat Hostiles . | . . . Follow-up Attacks . | . . . Damage Inflicted 833 | 152 681 . Guns 833 | 152 681 . Cannons . | . . . Explosions . | . . . Melee . | . . . Ramming . | . . . Kinetic 771 | 152 619 . Thermal 62 | . 62 . Explosive . | . . . Electromagnetic . | . . . Impact . | . . . Slashing . | . . . Piercing . | . . . Highest Corruption . | . . . Average Corruption . | . . . Corruption Purged . | . . . Corruption Blocked . | . . . Overload Shots . | . . . Overflow Damage . | . . . Projectiles . | . . . Explosions . | . . . Melee . | . . . Knockbacks . | . . . Impact . | . . . Kinetic . | . . . Secondary . | . . . Self-Inflicted Damage . | . . . Shots . | . . . Rammed . | . . . Targets Rammed . | . . . Kicked . | . . . Crushed . | . . . Highest Temperature 330 | . 330 . Average Temperature 100 | . 100 . Received Heat Transfer 351 | . 318 33 Effects 1 | . 1 . Short Circuit 1 | . 1 . Siege Activations . | . . . Martial Activations . | . . . Shielding Activations . | . . . Robots Disrupted . | . . . Combat Hostiles . | . . . Robots Corrupted . | . . . Combat Hostiles . | . . . Parts Fried . | . . . Impact Corruptions . | . . . Robots Melted . | . . . Combat Hostiles . | . . . Parts Melted . | . . . Heat Transferred 222 | . 222 . Parts Sabotaged . | . . . Parts Stolen . | . . . Parts Stripped . | . . . Power Chain Reactions . | . . . Alert | -11 -10 -10 ------- Run | Yrd Mat Sub Maximum Alert Level . | . . . Low Security (%) 100 | 100 100 . Level 1 . | . . . Level 2 . | . . . Level 3 . | . . . Level 4 . | . . . Level 5 . | . . . High Security . | . . . Max Security . | . . . Peak Influence 81 | 15 81 . Initial . | . . . Average 20 | 1 24 . Influence Increases 296 | 20 276 . Destroy 0b10 Robot/C 200 | . 200 . Destroy 0b10 Robot/NC 30 | 20 10 . Destroy Leader 40 | . 40 . Successful Hack 11 | . 11 . Partial Spotted 15 | . 15 . Influence Decreases 296 | 20 197 79 Entered New Map 39 | . . 39 Time Decay 227 | 20 177 30 Lost Part 30 | . 20 10 Squads Dispatched 2 | . 2 . Investigation . | . . . Extermination . | . . . Reinforcement 2 | . 2 . Assault . | . . . Garrison . | . . . Intercept . | . . . Searches Triggered . | . . . Construction Impeded . | . . . Haulers Reinforced . | . . . Active Scanning Responses . | . . . Cargo Convoy Interrupts . | . . . Stealth | -11 -10 -10 --------- Run | Yrd Mat Sub Distress Signals 3 | . 3 . Communications Jammed . | . . . Distress Signals . | . . . Times Spotted 21 | . 19 2 Peak Tracking Total 5 | . 5 2 Tactical Retreats 1 | . 1 . Traps | -11 -10 -10 ------- Run | Yrd Mat Sub Traps Triggered . | . . . Indirectly . | . . . Trap Hack Attempts . | . . . Triggered . | . . . Disarmed . | . . . Reprogrammed . | . . . Reused . | . . . Traps Extracted . | . . . Installed . | . . . Triggered . | . . . Machines | -11 -10 -10 ---------- Run | Yrd Mat Sub Machines Disabled . | . . . Max in Single Turn . | . . . Machines Repaired . | . . . Machines Dismantled . | . . . Machines Sabotaged . | . . . Overloaded Fab Kills . | . . . Hacking | -11 -10 -10 --------- Run | Yrd Mat Sub Machines Accessed 3 | . 3 . Terminals 3 | . 3 . Fabricators . | . . . Repair Stations . | . . . Recycling Units . | . . . Scanalyzers . | . . . Garrison Access . | . . . Total Hacks 6 | . 6 . Successful 4 | . 4 . Failed 2 | . 2 . Catastrophic 1 | . 1 . Database Lockouts . | . . . Manual . | . . . Terminals 6 | . 6 . Fabricators . | . . . Repair Stations . | . . . Recycling Units . | . . . Scanalyzers . | . . . Garrison Access . | . . . Terminal Hacks 4 | . 4 . Record 2 | . 2 . Branch Access Points 1 | . 1 . Dispatch Records 1 | . 1 . Fabricator Hacks . | . . . Repair Station Hacks . | . . . Recycling Unit Hacks . | . . . Scanalyzer . | . . . Garrison Access Hacks . | . . . Unauthorized Hacks . | . . . Terminals . | . . . Fabricators . | . . . Repair Stations . | . . . Recycling Units . | . . . Scanalyzers . | . . . Garrison Access . | . . . Data Cores Recovered . | . . . Used . | . . . Hacking Detections 1 | . 1 . Full Trace Events . | . . . Feedback Events . | . . . Feedback Blocked . | . . . Robot Schematics Acquired . | . . . Robots Built . | . . . Authchips . | . . . Time . | . . . Total Robot Build Rating . | . . . Part Schematics Acquired . | . . . Parts Built . | . . . Authchips . | . . . Time . | . . . Total Part Build Rating . | . . . Parts Repaired . | . . . Time . | . . . Parts Recycled . | . . . Recycled Matter . | . . . Retrieved Matter . | . . . Retrieved Components . | . . . Parts Scanalyzed . | . . . Part Schematics Acquired . | . . . Parts Damaged . | . . . Bothacking | -11 -10 -10 ------------ Run | Yrd Mat Sub Used RIF Installer . | . . . Robots Hacked . | . . . Non-combat . | . . . Combat . | . . . Robot Hacks Applied . | . . . Relay Couplers Released . | . . . Fabnet Peak Effective % . | . . . Robots Rewired . | . . . Allies Hacked . | . . . Hacks Repelled . | . . . Allies | -11 -10 -10 -------- Run | Yrd Mat Sub Total Allies . | . . . Largest Group . | . . . Highest-Rated Group . | . . . Highest-Rated Ally . | . . . Total Orders . | . . . Ally Attacks . | . . . Total Damage . | . . . Kills . | . . . Allies Corrupted . | . . . Allies Melted . | . . . Intel | -11 -10 -10 ------- Run | Yrd Mat Sub Active Infowar (turns) 477 | . 477 . Seismic 6 | . 6 . ECM 471 | . 471 . Robot Analysis Total . | . . . Derelict Logs Recovered . | . . . Drone Launches . | . . . Drone Recoveries . | . . . Exploration | -11 -10 -10 ------------- Run | Yrd Mat Sub Turns Passed 1205 | 218 898 89 Spaces Moved 624 | 111 432 81 Core 26 | 7 2 17 Treads 418 | 103 315 . Legs 1 | 1 . . Wheels 179 | . 115 64 Hover . | . . . Flight . | . . . Fastest Speed 50 | 50 100 100 Average Speed 141 | 152 144 110 Slowest Speed 300 | 160 300 150 Overloaded Moves . | . . . Propulsion Burnouts . | . . . Robots Hopped . | . . . Potential Cave-ins . | . . . Cave-ins Triggered . | . . . Exploration Rate (%) 23 | 5 60 6 Regions Visited 2 Branch Regions 1 Pre-discovered Areas . | . . . Known Exits Taken . | . . . Unknown Exits Taken 2 | 1 1 . Scrap Searched . | . . . Spaces Dug . | . . . Terrain Destroyed . | . . . Melee . | . . . Projectile . | . . . AOE . | . . . Terrain Rammed . | . . . Walls Destroyed . | . . . Machines Disabled . | . . . Actions | -11 -10 -10 --------- Run | Yrd Mat Sub Total 832 | 143 608 81 Wait 81 | . 81 . Move 622 | 110 431 81 Hop . | . . . Pick Up 12 | 3 9 . Fast Attach 17 | 9 8 . Attach . | . . . Detach 3 | 3 . . Swap 2 | . 2 . Drop 13 | 3 10 . Fire 82 | 15 67 . Melee . | . . . Ram . | . . . Kick . | . . . Crush . | . . . Escape Stasis . | . . . Rewire . | . . . Trap . | . . . Miscellaneous . | . . . Route ------- -11/Scrapyard -10/Materials (discovered 2 exits: *Min / [*Sub]) -10/Subcaves History --------- Turn | Location | Event 4 | -11/Scrapyard | Discovered new exit (range 15) 219 | -11/Scrapyard | Entered Materials 244 | -10/Materials | Identified exit to Mines 315 | -10/Materials | Build established: Mutant 997 | -10/Materials | Core integrity fell below 50% 1095 | -10/Materials | Core integrity fell below 20% 1106 | -10/Materials | Discovered new exit (range 10) 1117 | -10/Materials | Entered Subcaves 1206 | -10/Subcaves | Destroyed by KD-FSK(R) with Subdweller Laser Last Messages --------------- 01065_ Assault Rifle destroyed. 01082_ U-05 Engineer destroyed. 01095_ K-01 Serf collects debris. 01102_ G-34 Mercenary destroyed. 01105_ R-06 Scavenger collects Wheel. 01106_ EXIT=FOUND 01107_ K-01 Serf collects debris. 01107_ Acquired Sml. Laser. 01109_ Acquired 40 matter. 01110_ K-01 Serf collects debris. 01110_ R-06 Scavenger collects Terrain Scan Processor. 01111_ K-01 Serf collects debris. 01113_ R-06 Scavenger collects Aluminum Leg. LOCATION=UNKNOWN AMBIENT_HEAT=-10 GOAL=ESCAPE 01179_ Com. Wheel destroyed. 01180_ Lgt. Ion Engine destroyed. 01181_ Com. Wheel destroyed. Map ----- +----------------------------------------------------+ | ????????? ##?????# #?????????????????????? | | ????????? ????# ######????????????????? | | ?????????" ????# ##???????????????? | | ?????????? ???## ##??????????????? | | ??????????? " #???# #??????????????? | | ??????????? " #??## ## #??????????????? | | ????????????""" #??##### ##??????????????? | | ????????????""" #???### #???????????????? | | ???????#???# "" #### ##???????????????? | | ??????# ?????????# ##???????????????? | | ???????? ????????## #???????????????? | | ???????? ????????## #???????????????? | | ?????????"" ???????## ##???????????????? | | ??????????#" ####### ####????????????????? | | ???????????## #???????????????????? | | ??????????##""" ## #???????????????????? | | ?????????# """R ## #???????????????????? | | ????????? """" ## #???????????????????? | | ???????????### " ### #???????????????????? | | ?????????????##" ### #???????????????????? | | ??????????????### R## ##???????????????????? | | ????????????????### ###??????????????????? | | ??????????????????# #??????????????????? | | ??????????????????# ##??????????????????? | | ??????????????????###### #???????????????????? | | ???????????????????????# @ #???????????????????? | | ???????????????????????## ###?????????????????? | | ???????????????????????# #?????????????????? | | ???????????????????????# #?????????????????? | | ??????????????????????## #?????????????????? | | ??????????????????????# #?????????????????? | | ??????????????? # ##????????????????? | | ????????????# ### ###??????????????? | | ????????????# #?# #??????????????? | | ????????????## #??# #??????????????? | | ?????????????# ######??## ###??????????????? | | ????????????? ?????????# ##???????????????? | | ?????????????????????????# #???????????????? | | ?????????????????????????### #???????????????? | | ???????????????????????????# #???????????????? | | ???????????????????????????#####???????????????? | | ???????????????????????????????????????????????? | | ???????????????????????????????????????????????? | | ???????????????????????????????????????????????? | | ???????????????????????????????????????????????? | | ???????????????????????????????????????????????? | | ???????????????????????????????????????????????? | | ???????????????????????????????????????????????? | | ???????????????????????????????????????????????? | | ???????????????????????????????????????????????? | +----------------------------------------------------+ Best States ------------- Heat Dissipation 25 Energy Generation 10 Energy Capacity 250 Matter Stores 300 Matter Capacity 300 Sight Range 16 Terrain Scan Density 10 ECM Strength 1 Propulsion Shielding 33 Evasion (%) 50 Recoil Reduction 2 Item Schematics ----------------- None Robot Schematics ------------------ None Fabricated ------------ Nothing Repaired ---------- Nothing Alien Tech Used ----------------- None Achievements -------------- None Challenges ------------ None Game ------ Seed SignalTrapBoomstick Manual? 0 Play Time 00:06:12 Cumulative 22.6 hours Start 2025.08.31 @ 00:27:34 End 2025.08.31 @ 00:33:35 Sessions 1 Manual Loads 0 Difficulty Rogue Special Mode None Game No. 78 Rogue 78 Adventurer 0 Explorer 0 Win Type - Total 0 Types 0/0/0/0/0/0/0/0/0/0 Lore% 10 Gallery% 26 Achievement% 24 Wizard Run 0 Options --------- Layout 1 ASCII 0 Keyboard 1 Movement Vi Keybinds 0 Fullscreen 1 Font 16/SmallcapsGlow Map View 55x38 Zoom Use 0% Tactical HUD 1 Map Filters NONE Filters NONE Steam 1 RUN: 8d68ed5e-ccc0-4c41-86bc-e66ed0bbbc2c